[Event "RUS-ch Blitz Women 2018"]
[Site "Sochi"]
[Date "2018.10.07"]
[Round "17"]
[White "Dordzhieva, Dinara"]
[Black "Guseva, Marina"]
[Result "1/2-1/2"]
[ECO "A06"]
[WhiteElo "2340"]
[BlackElo "2292"]
[Annotator "NA"]
[PlyCount "91"]
[EventDate "2018.10.07"]
[EventType "swiss"]
[EventCountry "RUS"]
[SourceTitle "playchess.com"]
[Source "ChessBase"]
[SourceQuality "1"]
[TimeControl "180+2"]

1. Nf3 {[%emt 0:00:00]} d5 {[%emt 0:00:00]} 2. g3 {[%emt 0:00:00]} Bg4 {[%emt 0:00:00]} 3. Bg2 {[%emt 0:00:00]} Nd7 {[%emt 0:00:01]} 4. d4 {[%emt 0:00:01]} Ngf6 {[%emt 0:00:01]} 5. h3 {[%emt 0:00:01]} Bh5 {[%emt 0:00:17]} 6. O-O {[%emt 0:00:01]} e6 {[%emt 0:00:01]} 7. b3 {[%emt 0:00:02]} c6 {[%emt 0:00:08]} 8. c4 {[%emt 0:00:01]} Be7 {[%emt 0:00:04]} 9. Bb2 {[%emt 0:00:00]} Ne4 {[%emt 0:00:04]} 10. Nbd2 {[%emt 0:00:02]} Bg6 {[%emt 0:00:05]} 11. cxd5 {[%emt 0:00:26]} exd5 {[%emt 0:00:02]} 12. Ne5 {[%emt 0:00:04]} Nxe5 {[%emt 0:00:06]} 13. dxe5 {[%emt 0:00:01]} Nxd2 {[%emt 0:00:10]} 14. Qxd2 {[%emt 0:00:00]} O-O {[%emt 0:00:04]} 15. Qd4 {[%emt 0:00:07]} f6 {[%emt 0:00:14]} 16. exf6 {[%emt 0:00:13]} Bxf6 {[%emt 0:00:02]} 17. Qd2 {[%emt 0:00:00]} Bxb2 {[%emt 0:00:03]} 18. Qxb2 {[%emt 0:00:01]} Qe7 {[%emt 0:00:02]} 19. e3 {[%emt 0:00:01]} Be4 {[%emt 0:00:01]} 20. Rad1 {[%emt 0:00:22]} Bxg2 {[%emt 0:00:03]} 21. Kxg2 {[%emt 0:00:00]} Qe4+ {[%emt 0:00:02]} 22. Kg1 {[%emt 0:00:01]} Rae8 {[%emt 0:00:09]} 23. Rd4 {[%emt 0:00:01]} Qf3 {[%emt 0:00:02]} 24. Rg4 {[%emt 0:00:15]} Rf7 {[%emt 0:00:05]} 25. Qd4 {[%emt 0:00:01]} b6 {[%emt 0:00:05]} 26. b4 {[%emt 0:00:01]} h6 {[%emt 0:00:21]} 27. Qd2 {[%emt 0:00:02]} Re4 {[%emt 0:00:04]} 28. Rxe4 {[%emt 0:00:20]} Qxe4 29. Rc1 Rf6 {[%emt 0:00:06]} 30. Qd4 {[%emt 0:00:17]} Qxd4 {[%emt 0:00:05]} 31. exd4 {[%emt 0:00:01]} Kf7 {[%emt 0:00:01]} 32. h4 {[%emt 0:00:04]} Ke7 {[%emt 0:00:01]} 33. f4 {[%emt 0:00:06]} Re6 {[%emt 0:00:14]} 34. Kf2 {[%emt 0:00:02]} Kd7 {[%emt 0:00:02]} 35. Kf3 {[%emt 0:00:28]} Re4 {[%emt 0:00:03]} 36. Rd1 {[%emt 0:00:01]} h5 {[%emt 0:00:05]} 37. g4 {[%emt 0:00:00]} hxg4+ {[%emt 0:00:02]} 38. Kxg4 {[%emt 0:00:01]} Kd6 {[%emt 0:00:01]} 39. Kg5 {[%emt 0:00:03]} Ke6 {[%emt 0:00:06]} 40. f5+ {[%emt 0:00:03]} Kf7 {[%emt 0:00:02]} 41. Rc1 {[%emt 0:00:05]} Rxd4 {[%emt 0:00:02]} 42. Rxc6 {[%emt 0:00:01]} Rxb4 43. Rc7+ Kg8 {[%emt 0:00:03]} 44. Rxa7 {[%emt 0:00:02]} Rb2 {[%emt 0:00:03]} 45. Rd7 {[%emt 0:00:24]} Rxa2 {[%emt 0:00:04]} 46. Rxd5 {[%emt 0:00:01]} 1/2-1/2

[Event "RUS-ch Blitz Women 2018"]
[Site "Sochi"]
[Date "2018.10.07"]
[Round "17"]
[White "Vasilevich, Irina"]
[Black "Vasilevich, Tatjana"]
[Result "1-0"]
[ECO "A22"]
[WhiteElo "2258"]
[BlackElo "2360"]
[Annotator "NA"]
[PlyCount "96"]
[EventDate "2018.10.07"]
[EventType "swiss"]
[EventCountry "RUS"]
[SourceTitle "playchess.com"]
[Source "ChessBase"]
[SourceQuality "1"]
[TimeControl "180+2"]

1. c4 {[%emt 0:00:00]} e5 {[%emt 0:00:00]} 2. Nc3 {[%emt 0:00:01]} Nf6 {[%emt 0:00:00]} 3. g3 {[%emt 0:00:01]} d5 {[%emt 0:00:00]} 4. cxd5 {[%emt 0:00:02]} Nxd5 {[%emt 0:00:00]} 5. Bg2 Nb6 6. e3 {[%emt 0:00:02]} Nc6 {[%emt 0:00:06]} 7. Nge2 {[%emt 0:00:02]} Nb4 {[%emt 0:00:14]} 8. O-O {[%emt 0:00:15]} Nd3 {[%emt 0:00:10]} 9. f4 {[%emt 0:00:03]} Bd6 {[%emt 0:00:37]} 10. fxe5 Bxe5 11. a3 {[%emt 0:01:03]} O-O {[%emt 0:00:06]} 12. Qc2 {[%emt 0:00:00]} Be6 {[%emt 0:00:15]} 13. Be4 {[%emt 0:00:08]} Nxc1 {[%emt 0:00:23]} 14. Raxc1 {[%emt 0:00:02]} g6 {[%emt 0:00:04]} 15. Bxb7 {[%emt 0:00:04]} Rb8 {[%emt 0:00:06]} 16. Bg2 {[%emt 0:00:04]} Nc4 {[%emt 0:00:01]} 17. b4 {[%emt 0:01:07]} Qxd2 {[%emt 0:00:19]} 18. Qxd2 {[%emt 0:00:13]} Nxd2 {[%emt 0:00:01]} 19. Rfd1 {[%emt 0:00:01]} Nc4 {[%emt 0:00:02]} 20. Nd5 {[%emt 0:00:05]} Nxa3 {[%emt 0:00:18]} 21. Ne7+ {[%emt 0:00:04]} Kg7 {[%emt 0:00:06]} 22. Nc6 {[%emt 0:00:01]} Rb5 {[%emt 0:00:11]} 23. Rd3 {[%emt 0:00:08]} Nc4 {[%emt 0:00:09]} 24. Ned4 {[%emt 0:00:01]} Bxd4 {[%emt 0:00:04]} 25. Nxd4 {[%emt 0:00:02]} Rxb4 {[%emt 0:00:01]} 26. Nxe6+ {[%emt 0:00:01]} fxe6 {[%emt 0:00:01]} 27. Rd4 {[%emt 0:00:04]} Rb2 {[%emt 0:00:24]} 28. Rdxc4 {[%emt 0:00:04]} Rff2 {[%emt 0:00:01]} 29. Rxc7+ {[%emt 0:00:03]} Kh6 {[%emt 0:00:00]} 30. Be4 {[%emt 0:00:06]} Rxh2 {[%emt 0:00:10]} 31. R7c2 {[%emt 0:00:02]} Rhxc2 32. Rxc2 {[%emt 0:00:01]} Rb3 {[%emt 0:00:05]} 33. Kf2 {[%emt 0:00:04]} a5 {[%emt 0:00:03]} 34. Rc6 {[%emt 0:00:04]} a4 {[%emt 0:00:03]} 35. Rxe6 {[%emt 0:00:02]} a3 {[%emt 0:00:01]} 36. Ra6 {[%emt 0:00:01]} Kg5 {[%emt 0:00:03]} 37. Bd5 {[%emt 0:00:02]} Rc3 {[%emt 0:00:01]} 38. Kf3 {[%emt 0:00:02]} Kh5 {[%emt 0:00:06]} 39. Bg8 {[%emt 0:00:01]} h6 {[%emt 0:00:02]} 40. Bf7 {[%emt 0:00:02]} Kg5 {[%emt 0:00:03]} 41. Rxg6+ {[%emt 0:00:02]} Kf5 {[%emt 0:00:00]} 42. Rxh6 {[%emt 0:00:03]} Rc7 {[%emt 0:00:03]} 43. Bd5 {[%emt 0:00:04]} Ra7 {[%emt 0:00:02]} 44. Rh2 {[%emt 0:00:03]} Ke5 {[%emt 0:00:02]} 45. e4 {[%emt 0:00:01]} Rc7 {[%emt 0:00:04]} 46. Ra2 {[%emt 0:00:02]} Rc3+ {[%emt 0:00:01]} 47. Kg2 {[%emt 0:00:02]} Kd4 {[%emt 0:00:06]} 48. g4 {[%emt 0:00:02]} Ke3 {[%emt 0:00:02]} 1-0

[Event "RUS-ch Blitz Women 2018"]
[Site "Sochi"]
[Date "2018.10.07"]
[Round "17"]
[White "Nebolsina, Vera"]
[Black "Illina, Natalia"]
[Result "1-0"]
[ECO "B23"]
[WhiteElo "2220"]
[BlackElo "1879"]
[Annotator "NA"]
[PlyCount "75"]
[EventDate "2018.10.07"]
[EventType "swiss"]
[EventCountry "RUS"]
[SourceTitle "playchess.com"]
[Source "ChessBase"]
[SourceQuality "1"]
[TimeControl "180+2"]

1. e4 {[%emt 0:00:00]} c5 {[%emt 0:00:00]} 2. Nc3 {[%emt 0:00:00]} g6 {[%emt 0:00:00]} 3. f4 {[%emt 0:00:07]} Bg7 {[%emt 0:00:03]} 4. Nf3 {[%emt 0:00:03]} d6 {[%emt 0:00:03]} 5. Bc4 {[%emt 0:00:06]} Nc6 {[%emt 0:00:04]} 6. O-O {[%emt 0:00:10]} e6 {[%emt 0:00:07]} 7. d3 {[%emt 0:00:03]} Nge7 {[%emt 0:00:01]} 8. Qe1 {[%emt 0:00:02]} O-O {[%emt 0:00:10]} 9. Qh4 {[%emt 0:00:04]} d5 {[%emt 0:00:08]} 10. Bb3 {[%emt 0:00:02]} Nd4 {[%emt 0:00:02]} 11. Nxd4 {[%emt 0:00:02]} cxd4 {[%emt 0:00:14]} 12. Ne2 {[%emt 0:00:02]} dxe4 {[%emt 0:00:23]} 13. dxe4 {[%emt 0:00:02]} Nc6 {[%emt 0:00:32]} 14. Qg3 {[%emt 0:00:36]} Na5 {[%emt 0:00:12]} 15. e5 {[%emt 0:00:24]} Qb6 {[%emt 0:00:20]} 16. Qf2 {[%emt 0:00:35]} Rd8 {[%emt 0:00:09]} 17. Ng3 {[%emt 0:00:02]} Nxb3 {[%emt 0:00:41]} 18. axb3 {[%emt 0:00:02]} Bd7 {[%emt 0:00:00]} 19. Bd2 {[%emt 0:00:13]} Bc6 {[%emt 0:00:04]} 20. Ba5 {[%emt 0:00:02]} Qb5 {[%emt 0:00:05]} 21. Bxd8 {[%emt 0:00:01]} Rxd8 {[%emt 0:00:01]} 22. Rxa7 {[%emt 0:00:06]} Bf8 23. Rfa1 {[%emt 0:00:20]} d3 {[%emt 0:00:18]} 24. c4 {[%emt 0:00:04]} Qb4 {[%emt 0:00:03]} 25. Ra8 {[%emt 0:00:08]} Bc5 {[%emt 0:00:01]} 26. Rxd8+ Kg7 {[%emt 0:00:00]} 27. Rxd3 {[%emt 0:00:09]} Bxf2+ 28. Kxf2 {[%emt 0:00:02]} b5 {[%emt 0:00:04]} 29. Rc1 {[%emt 0:00:06]} Qc5+ {[%emt 0:00:07]} 30. Kf1 {[%emt 0:00:04]} bxc4 {[%emt 0:00:04]} 31. Rxc4 {[%emt 0:00:01]} Qb6 {[%emt 0:00:01]} 32. Rd6 {[%emt 0:00:02]} Qe3 {[%emt 0:00:04]} 33. Rdxc6 {[%emt 0:00:03]} Qd3+ {[%emt 0:00:01]} 34. Kf2 {[%emt 0:00:01]} Qd2+ {[%emt 0:00:02]} 35. Ne2 {[%emt 0:00:01]} Qd3 {[%emt 0:00:03]} 36. Rd6 {[%emt 0:00:01]} Qf5 {[%emt 0:00:02]} 37. Rd7 {[%emt 0:00:02]} g5 {[%emt 0:00:00]} 38. Rcc7 {[%emt 0:00:01]} 1-0

[Event "RUS-ch Blitz Women 2018"]
[Site "Sochi"]
[Date "2018.10.07"]
[Round "17"]
[White "Vinokur, Yuliya"]
[Black "Gritsayeva, Oksana"]
[Result "0-1"]
[ECO "A40"]
[WhiteElo "2170"]
[BlackElo "2378"]
[Annotator "NA"]
[PlyCount "56"]
[EventDate "2018.10.07"]
[EventType "swiss"]
[EventCountry "RUS"]
[SourceTitle "playchess.com"]
[Source "ChessBase"]
[SourceQuality "1"]
[TimeControl "180+2"]

1. d4 {[%emt 0:00:00]} Nf6 {[%emt 0:00:00]} 2. c4 {[%emt 0:00:01]} e6 {[%emt 0:00:00]} 3. g3 {[%emt 0:00:01]} c5 {[%emt 0:00:01]} 4. d5 {[%emt 0:00:03]} exd5 {[%emt 0:00:01]} 5. cxd5 {[%emt 0:00:01]} b5 {[%emt 0:00:01]} 6. Bg2 {[%emt 0:00:03]} d6 {[%emt 0:00:01]} 7. a4 {[%emt 0:00:10]} b4 {[%emt 0:00:03]} 8. Nf3 {[%emt 0:00:08]} Be7 {[%emt 0:00:04]} 9. O-O {[%emt 0:00:02]} a5 {[%emt 0:00:10]} 10. Nbd2 {[%emt 0:00:05]} Nbd7 {[%emt 0:00:03]} 11. Nc4 {[%emt 0:00:26]} Nb6 {[%emt 0:00:03]} 12. Nxb6 {[%emt 0:00:29]} Qxb6 {[%emt 0:00:01]} 13. Nd2 {[%emt 0:00:01]} Ba6 {[%emt 0:00:07]} 14. Qc2 {[%emt 0:00:05]} O-O {[%emt 0:01:07]} 15. Nc4 {[%emt 0:00:09]} Qc7 {[%emt 0:00:01]} 16. b3 {[%emt 0:00:05]} Nd7 {[%emt 0:00:06]} 17. Bb2 {[%emt 0:00:04]} Bf6 {[%emt 0:00:02]} 18. Bxf6 {[%emt 0:00:03]} Nxf6 {[%emt 0:00:02]} 19. Rac1 {[%emt 0:00:02]} Rfe8 {[%emt 0:00:03]} 20. Rfe1 {[%emt 0:00:01]} Re7 {[%emt 0:00:09]} 21. e4 {[%emt 0:00:14]} Rae8 {[%emt 0:00:03]} 22. f4 {[%emt 0:00:10]} Nxd5 {[%emt 0:00:07]} 23. e5 {[%emt 0:00:41]} Bxc4 {[%emt 0:00:11]} 24. Qxc4 {[%emt 0:00:04]} Nc3 {[%emt 0:00:02]} 25. Bd5 {[%emt 0:00:24]} dxe5 {[%emt 0:00:06]} 26. fxe5 {[%emt 0:00:01]} Rxe5 {[%emt 0:00:11]} 27. Rxe5 {[%emt 0:00:02]} Rxe5 {[%emt 0:00:01]} 28. Bg2 {[%emt 0:00:07]} Ne2+ {[%emt 0:00:06]} 0-1

[Event "RUS-ch Blitz Women 2018"]
[Site "Sochi"]
[Date "2018.10.07"]
[Round "17"]
[White "Goltseva, Ekaterina"]
[Black "Lysenko, Margarita"]
[Result "0-1"]
[ECO "E73"]
[WhiteElo "2169"]
[BlackElo "2122"]
[Annotator "NA"]
[PlyCount "138"]
[EventDate "2018.10.07"]
[EventType "swiss"]
[EventCountry "RUS"]
[SourceTitle "playchess.com"]
[Source "ChessBase"]
[SourceQuality "1"]
[TimeControl "180+2"]

1. d4 {[%emt 0:00:00]} Nf6 {[%emt 0:00:00]} 2. c4 {[%emt 0:00:00]} g6 {[%emt 0:00:00]} 3. Nc3 {[%emt 0:00:00]} Bg7 {[%emt 0:00:01]} 4. e4 {[%emt 0:00:01]} O-O {[%emt 0:00:02]} 5. Be2 {[%emt 0:00:01]} d6 {[%emt 0:00:04]} 6. Bg5 {[%emt 0:00:01]} Na6 {[%emt 0:00:01]} 7. Qd2 {[%emt 0:00:04]} e5 {[%emt 0:00:01]} 8. d5 {[%emt 0:00:07]} Nc5 {[%emt 0:00:02]} 9. f3 {[%emt 0:00:06]} a5 {[%emt 0:00:01]} 10. g4 {[%emt 0:00:16]} c6 {[%emt 0:00:01]} 11. h4 {[%emt 0:00:06]} cxd5 {[%emt 0:00:06]} 12. cxd5 {[%emt 0:00:05]} a4 {[%emt 0:00:10]} 13. h5 {[%emt 0:00:29]} Bd7 {[%emt 0:00:13]} 14. Nh3 {[%emt 0:00:33]} Qa5 {[%emt 0:00:09]} 15. Nf2 {[%emt 0:00:07]} Rfc8 {[%emt 0:00:09]} 16. h6 {[%emt 0:00:17]} Bh8 {[%emt 0:00:02]} 17. Ncd1 {[%emt 0:00:04]} Qxd2+ {[%emt 0:00:31]} 18. Kxd2 {[%emt 0:00:04]} Ne8 {[%emt 0:00:05]} 19. Ne3 {[%emt 0:00:13]} b5 {[%emt 0:00:37]} 20. Nd3 {[%emt 0:00:02]} Nxd3 {[%emt 0:00:26]} 21. Bxd3 {[%emt 0:00:01]} f6 {[%emt 0:00:31]} 22. Bh4 {[%emt 0:00:02]} Nc7 {[%emt 0:00:02]} 23. Rhc1 {[%emt 0:00:28]} Na6 {[%emt 0:00:03]} 24. Bf2 {[%emt 0:00:17]} Nb4 {[%emt 0:00:14]} 25. Nc2 {[%emt 0:00:07]} Nxd3 {[%emt 0:00:09]} 26. Kxd3 {[%emt 0:00:01]} f5 {[%emt 0:00:00]} 27. gxf5 {[%emt 0:00:02]} gxf5 {[%emt 0:00:01]} 28. Nb4 {[%emt 0:00:03]} Bf6 {[%emt 0:00:08]} 29. Be3 {[%emt 0:00:05]} Kf7 {[%emt 0:00:01]} 30. Rg1 {[%emt 0:00:06]} f4 {[%emt 0:00:03]} 31. Bf2 {[%emt 0:00:03]} Rg8 {[%emt 0:00:03]} 32. Rac1 {[%emt 0:00:04]} Rgc8 {[%emt 0:00:04]} 33. a3 {[%emt 0:00:02]} Rab8 {[%emt 0:00:02]} 34. Na6 {[%emt 0:00:03]} Ra8 {[%emt 0:00:02]} 35. Nb4 {[%emt 0:00:03]} Rab8 {[%emt 0:00:01]} 36. Na6 {[%emt 0:00:04]} Ra8 {[%emt 0:00:01]} 37. Nb4 {[%emt 0:00:01]} Rab8 {[%emt 0:00:01]} 38. Kd2 {[%emt 0:00:02]} Rxc1 39. Rxc1 {[%emt 0:00:01]} Rg8 {[%emt 0:00:04]} 40. Rc7 {[%emt 0:00:03]} Ke8 {[%emt 0:00:02]} 41. Nc6 {[%emt 0:00:03]} Rg2 {[%emt 0:00:01]} 42. Ke1 {[%emt 0:00:01]} Rh2 {[%emt 0:00:02]} 43. Rb7 {[%emt 0:00:02]} Rh1+ {[%emt 0:00:03]} 44. Ke2 {[%emt 0:00:02]} Rb1 {[%emt 0:00:01]} 45. Rxb5 {[%emt 0:00:02]} Rc1 {[%emt 0:00:04]} 46. Rb8+ {[%emt 0:00:01]} Kf7 {[%emt 0:00:01]} 47. Rb7 {[%emt 0:00:03]} Ke8 {[%emt 0:00:01]} 48. Nb4 {[%emt 0:00:02]} Rh1 {[%emt 0:00:03]} 49. Nc6 {[%emt 0:00:04]} Rxh6 {[%emt 0:00:04]} 50. b3 {[%emt 0:00:02]} axb3 51. Rxb3 {[%emt 0:00:01]} Rh1 {[%emt 0:00:02]} 52. Rb8+ {[%emt 0:00:04]} Kf7 {[%emt 0:00:02]} 53. Rb7 {[%emt 0:00:02]} Ke8 {[%emt 0:00:00]} 54. Ra7 {[%emt 0:00:01]} Ra1 {[%emt 0:00:03]} 55. a4 {[%emt 0:00:01]} h5 {[%emt 0:00:03]} 56. a5 {[%emt 0:00:02]} h4 {[%emt 0:00:02]} 57. Ra8+ {[%emt 0:00:02]} Kf7 {[%emt 0:00:01]} 58. a6 {[%emt 0:00:03]} h3 {[%emt 0:00:02]} 59. Nd8+ {[%emt 0:00:02]} Bxd8 60. Rxd8 Ke7 {[%emt 0:00:03]} 61. Rh8 {[%emt 0:00:03]} Rxa6 {[%emt 0:00:02]} 62. Bh4+ {[%emt 0:00:04]} Kf7 {[%emt 0:00:03]} 63. Rh7+ {[%emt 0:00:01]} Kg6 {[%emt 0:00:03]} 64. Rh8 {[%emt 0:00:01]} h2 {[%emt 0:00:01]} 65. Be1 {[%emt 0:00:03]} Ra2+ {[%emt 0:00:01]} 66. Bd2 {[%emt 0:00:02]} Bb5+ {[%emt 0:00:02]} 67. Ke1 Ra1+ {[%emt 0:00:01] Kd1 [%clk 0:00:03] Be2+ [%clk 0:00:04]} 68. Bc1 Rxc1+ {[%emt 0:00:09] Kxe2 Ra1 [%clk 0:00:06]} 69. Kd2 {[%emt 0:00:10]} h1=Q {[%emt 0:00:00] Kc3} 0-1

[Event "RUS-ch Blitz Women 2018"]
[Site "Sochi"]
[Date "2018.10.07"]
[Round "17"]
[White "Ivanova, Karina"]
[Black "Belenkaya, Dina"]
[Result "0-1"]
[ECO "D78"]
[WhiteElo "2124"]
[BlackElo "2329"]
[Annotator "NA"]
[PlyCount "70"]
[EventDate "2018.10.07"]
[EventType "swiss"]
[EventCountry "RUS"]
[SourceTitle "playchess.com"]
[Source "ChessBase"]
[SourceQuality "1"]
[TimeControl "180+2"]

1. Nf3 {[%emt 0:00:00]} d5 {[%emt 0:00:00]} 2. g3 {[%emt 0:00:01]} g6 {[%emt 0:00:00]} 3. d4 {[%emt 0:00:05]} Bg7 {[%emt 0:00:01]} 4. Bg2 {[%emt 0:00:01]} Nf6 {[%emt 0:00:04]} 5. O-O {[%emt 0:00:01]} O-O {[%emt 0:00:02]} 6. c4 {[%emt 0:00:01]} c6 {[%emt 0:00:01]} 7. b3 {[%emt 0:00:02]} a5 {[%emt 0:00:01]} 8. a4 {[%emt 0:00:10]} Bf5 {[%emt 0:00:04]} 9. Bb2 {[%emt 0:00:03]} Na6 {[%emt 0:00:01]} 10. Nbd2 {[%emt 0:00:08]} Nb4 {[%emt 0:00:01]} 11. Ne1 {[%emt 0:00:06]} Qb6 {[%emt 0:00:10]} 12. c5 {[%emt 0:00:10]} Qc7 {[%emt 0:00:01]} 13. Bc3 {[%emt 0:00:08]} Rad8 {[%emt 0:00:06]} 14. Bxb4 {[%emt 0:00:06]} axb4 {[%emt 0:00:01]} 15. Nc2 {[%emt 0:00:02]} Qa5 {[%emt 0:00:02]} 16. f3 {[%emt 0:00:20]} Bh6 {[%emt 0:00:21]} 17. Kf2 {[%emt 0:00:36]} Rfe8 {[%emt 0:00:03]} 18. e4 {[%emt 0:00:34]} dxe4 {[%emt 0:00:04]} 19. Nxe4 {[%emt 0:00:16]} Nd5 {[%emt 0:00:16]} 20. g4 {[%emt 0:00:11]} Bc8 {[%emt 0:00:04]} 21. g5 {[%emt 0:00:18]} Bg7 {[%emt 0:00:01]} 22. Qe1 {[%emt 0:00:03]} Nf4 {[%emt 0:00:06]} 23. Kg1 {[%emt 0:00:05]} e5 {[%emt 0:00:26]} 24. Nd6 {[%emt 0:00:04]} Re7 {[%emt 0:00:07]} 25. Nc4 {[%emt 0:00:05]} Qc7 {[%emt 0:00:04]} 26. dxe5 {[%emt 0:00:04]} Nd3 {[%emt 0:00:03]} 27. Qg3 {[%emt 0:00:03]} Nxe5 {[%emt 0:00:11]} 28. Nxe5 {[%emt 0:00:04]} Bxe5 {[%emt 0:00:01]} 29. f4 {[%emt 0:00:06]} Bxa1 {[%emt 0:00:01]} 30. Nxa1 {[%emt 0:00:03]} Bf5 {[%emt 0:00:03]} 31. Qf2 {[%emt 0:00:03]} Rd3 {[%emt 0:00:04]} 32. Qb2 {[%emt 0:00:02]} Qd7 {[%emt 0:00:06]} 33. Kh1 {[%emt 0:00:02]} Rd2 {[%emt 0:00:03]} 34. Qc1 {[%emt 0:00:01]} Ree2 {[%emt 0:00:01]} 35. Rg1 {[%emt 0:00:02]} Bh3 {[%emt 0:00:03]} 0-1

[Event "RUS-ch Blitz Women 2018"]
[Site "Sochi"]
[Date "2018.10.07"]
[Round "17"]
[White "Miroshnik, Ekaterina"]
[Black "Tomilova, Elena"]
[Result "1-0"]
[ECO "D47"]
[WhiteElo "2016"]
[BlackElo "2328"]
[Annotator "NA"]
[PlyCount "112"]
[EventDate "2018.10.07"]
[EventType "swiss"]
[EventCountry "RUS"]
[SourceTitle "playchess.com"]
[Source "ChessBase"]
[SourceQuality "1"]
[TimeControl "180+2"]

1. d4 {[%emt 0:00:00]} d5 {[%emt 0:00:00]} 2. c4 {[%emt 0:00:00]} c6 {[%emt 0:00:00]} 3. Nf3 {[%emt 0:00:00]} Nf6 {[%emt 0:00:00]} 4. e3 {[%emt 0:00:01]} e6 {[%emt 0:00:02]} 5. Nc3 {[%emt 0:00:01]} Nbd7 {[%emt 0:00:01]} 6. Bd3 {[%emt 0:00:01]} dxc4 {[%emt 0:00:03]} 7. Bxc4 {[%emt 0:00:01]} b5 {[%emt 0:00:01]} 8. Bd3 Bb7 9. O-O {[%emt 0:00:04]} a6 {[%emt 0:00:04]} 10. b3 {[%emt 0:00:02]} c5 {[%emt 0:00:11]} 11. Bb2 {[%emt 0:00:03]} Be7 {[%emt 0:00:05]} 12. a4 {[%emt 0:00:02]} b4 {[%emt 0:00:06]} 13. Nb1 {[%emt 0:00:05]} O-O {[%emt 0:00:06]} 14. Nbd2 {[%emt 0:00:02]} cxd4 {[%emt 0:00:04]} 15. Bxd4 {[%emt 0:00:20]} Nc5 {[%emt 0:00:11]} 16. Bc2 {[%emt 0:00:15]} Rc8 {[%emt 0:00:06]} 17. Nc4 {[%emt 0:00:09]} Nfe4 {[%emt 0:00:09]} 18. Nfe5 {[%emt 0:00:06]} Bf6 {[%emt 0:00:15]} 19. f3 {[%emt 0:00:15]} Nc3 {[%emt 0:00:10]} 20. Bxc3 {[%emt 0:00:06]} bxc3 {[%emt 0:00:02]} 21. Qxd8 {[%emt 0:00:28]} Rfxd8 {[%emt 0:00:02]} 22. Rfd1 {[%emt 0:00:01]} Be7 {[%emt 0:00:25]} 23. Kf2 {[%emt 0:00:07]} f6 {[%emt 0:00:05]} 24. Nd3 {[%emt 0:00:02]} Nxd3+ {[%emt 0:00:06]} 25. Rxd3 {[%emt 0:00:04]} Rxd3 {[%emt 0:00:03]} 26. Bxd3 {[%emt 0:00:01]} Bb4 {[%emt 0:00:05]} 27. Rd1 {[%emt 0:00:03]} Kf8 {[%emt 0:00:13]} 28. Ke2 {[%emt 0:00:10]} g6 {[%emt 0:00:04]} 29. Bc2 {[%emt 0:00:03]} Ke7 {[%emt 0:00:07]} 30. Nb6 {[%emt 0:00:05]} Rc7 {[%emt 0:00:03]} 31. Nc4 {[%emt 0:00:08]} f5 {[%emt 0:00:14]} 32. Rd4 {[%emt 0:00:10]} a5 {[%emt 0:00:08]} 33. Kd1 {[%emt 0:00:09]} Bd5 {[%emt 0:00:06]} 34. Bd3 {[%emt 0:00:04]} g5 {[%emt 0:00:09]} 35. e4 {[%emt 0:00:45]} fxe4 {[%emt 0:00:11]} 36. Bxe4 {[%emt 0:00:04]} Bc5 {[%emt 0:00:13]} 37. Rd3 {[%emt 0:00:03]} Bxc4 {[%emt 0:00:05]} 38. bxc4 {[%emt 0:00:01]} Bb4 {[%emt 0:00:02]} 39. Rd4 {[%emt 0:00:05]} h6 {[%emt 0:00:04]} 40. Kc2 {[%emt 0:00:01]} e5 {[%emt 0:00:04]} 41. Rd5 {[%emt 0:00:02]} Ke6 {[%emt 0:00:02]} 42. Rd8 {[%emt 0:00:04]} Rxc4 {[%emt 0:00:03]} 43. Re8+ {[%emt 0:00:02]} Kf6 {[%emt 0:00:02]} 44. Rf8+ {[%emt 0:00:01]} Ke7 {[%emt 0:00:01]} 45. Rh8 {[%emt 0:00:02]} Rd4 {[%emt 0:00:03]} 46. Bd3 {[%emt 0:00:03]} Bd6 {[%emt 0:00:06]} 47. Bb5 {[%emt 0:00:06]} Rd2+ {[%emt 0:00:03]} 48. Kxc3 {[%emt 0:00:01]} Rxg2 {[%emt 0:00:02]} 49. Rxh6 {[%emt 0:00:01]} Rf2 {[%emt 0:00:03]} 50. Bc6 {[%emt 0:00:02]} Bb4+ {[%emt 0:00:04]} 51. Kb3 {[%emt 0:00:02]} Rg2 {[%emt 0:00:03]} 52. h4 {[%emt 0:00:02]} gxh4 {[%emt 0:00:02]} 53. Rxh4 {[%emt 0:00:01]} Kd6 {[%emt 0:00:01]} 54. Rh6+ {[%emt 0:00:02]} Kc5 {[%emt 0:00:01]} 55. Be4 {[%emt 0:00:05]} Rf2 {[%emt 0:00:02]} 56. Rc6+ {[%emt 0:00:01]} Kd4 {[%emt 0:00:02]} 1-0